bitfinex/quotes_BTCUSD_20251104
["timestamp","ask_amount","ask_price","bid_price","bid_amount"]
[1762275061835,0.04138,102550.0,102530.0,0.28708759]
[1762275062038,0.2364075,102550.0,102530.0,0.31897495]
[1762275062264,0.77739779,102540.0,102520.0,0.00024605]
[1762275062516,1.09348681,102530.0,102520.0,0.00024605]
[1762275062718,4.18270681,102530.0,102520.0,0.00024605]
[1762275063120,4.74023877,102530.0,102520.0,0.00024605]
[1762275063320,0.19279943,102510.0,102500.0,5.39821431]
[1762275063537,3.73179246,102510.0,102500.0,5.43821781]
[1762275063827,4.37854442,102510.0,102500.0,5.43821781]
[1762275064264,4.33975444,102510.0,102500.0,5.43821781]
[1762275064703,4.35975442,102510.0,102500.0,5.14270781]
[1762275065286,3.80222246,102510.0,102500.0,5.14270781]
[1762275065529,4.4137959,102510.0,102500.0,5.14270781]
[1762275065688,4.4157959,102510.0,102500.0,5.14270781]
[1762275066106,4.4137959,102510.0,102500.0,5.14270781]
[1762275066519,4.4157959,102510.0,102500.0,5.14270781]
[1762275066691,4.42579589,102510.0,102500.0,5.14270781]
[1762275067304,4.4157959,102510.0,102500.0,5.14270781]
[1762275067479,4.34175444,102510.0,102500.0,5.14270781]
[1762275067681,4.34179444,102510.0,102500.0,5.14270781]
[1762275068085,3.78426248,102510.0,102500.0,5.14270781]
[1762275068291,4.34179444,102510.0,102500.0,5.14270781]
[1762275068681,4.36179442,102510.0,102500.0,4.57142246]
[1762275068882,4.43602608,102510.0,102500.0,4.57142246]
[1762275069079,3.87849412,102510.0,102500.0,4.57142246]
[1762275069421,4.4160261,102510.0,102500.0,4.5719147]
[1762275069624,4.0760261,102510.0,102500.0,4.5719147]
[1762275070335,4.42602609,102510.0,102500.0,4.5719147]
[1762275070689,4.43602608,102510.0,102500.0,4.5719147]
[1762275071116,4.42602609,102510.0,102500.0,4.5719147]
[1762275071321,4.43602608,102510.0,102500.0,4.5719147]
[1762275071725,4.43602608,102510.0,102500.0,4.01243253]
[1762275071726,4.99355804,102510.0,102500.0,4.01243253]
[1762275071928,5.27355804,102510.0,102500.0,3.78223287]
[1762275072133,5.27355804,102510.0,102500.0,3.62094302]
[1762275072386,5.29755804,102510.0,102500.0,3.43042501]
[1762275072559,5.29755804,102510.0,102500.0,2.91911643]
[1762275072765,5.31625022,102510.0,102500.0,2.86052269]
[1762275072943,5.31625022,102510.0,102500.0,2.83122582]
[1762275073123,5.29925022,102510.0,102500.0,2.80192895]
[1762275073498,5.31925022,102510.0,102500.0,2.03500032]
[1762275073719,5.32120953,102510.0,102500.0,1.96787377]
[1762275074002,5.30324823,102510.0,102500.0,1.9385769]
[1762275074152,5.32724823,102510.0,102500.0,1.19197248]
[1762275074361,5.35417892,102510.0,102500.0,0.44492693]
[1762275074570,0.21512193,102500.0,102490.0,0.25450673]
[1762275074790,5.26921488,102490.0,102480.0,0.41752133]
[1762275075106,4.85365488,102490.0,102480.0,0.35889839]
[1762275075335,0.59793905,102470.0,102460.0,1e-08]
[1762275075453,4.77547996,102470.0,102460.0,1e-08]
[1762275075656,4.87196996,102470.0,102460.0,1e-08]
[1762275076007,4.314438,102470.0,102460.0,1e-08]
[1762275076367,4.89596996,102470.0,102460.0,1e-08]
[1762275076606,4.94396919,102470.0,102460.0,0.03951646]
[1762275076971,4.96796919,102470.0,102460.0,0.03951646]
[1762275077210,3.63722116,102460.0,102450.0,0.01757071]
[1762275077427,4.93554104,102460.0,102450.0,0.01757071]
[1762275077613,4.93554104,102460.0,102450.0,1e-08]
[1762275077614,4.91154104,102460.0,102450.0,1e-08]
[1762275077826,4.95606104,102460.0,102450.0,1e-08]
[1762275078001,4.93812507,102460.0,102450.0,1e-08]
[1762275078446,4.93861191,102460.0,102450.0,1e-08]
[1762275078653,4.95654232,102460.0,102450.0,1e-08]
[1762275078882,3.89147791,102460.0,102450.0,1e-08]
[1762275079082,4.95654183,102460.0,102450.0,1e-08]
[1762275079380,3.54523622,102440.0,102420.0,0.0062552]
[1762275079586,4.74792014,102440.0,102420.0,0.0062552]
[1762275079886,4.85441013,102440.0,102420.0,0.0062552]
[1762275080403,0.00999999,102410.0,102400.0,0.008924]
[1762275080577,4.12705352,102390.0,102380.0,0.15536386]
[1762275080720,4.30155623,102390.0,102380.0,0.15536386]
[1762275080918,4.45510881,102390.0,102380.0,0.1015895]
[1762275081147,4.39203306,102390.0,102380.0,0.1015895]
[1762275081366,3.68260727,102390.0,102380.0,0.14357047]
[1762275081571,4.1471259,102390.0,102380.0,0.04845845]
[1762275081940,4.14712637,102390.0,102380.0,0.04845845]
[1762275082343,4.08865936,102390.0,102380.0,0.03672267]
[1762275082538,3.58420316,102390.0,102380.0,0.03672267]
[1762275082742,3.8833278,102390.0,102380.0,0.03672267]
[1762275082941,4.1469383,102390.0,102380.0,0.03672267]
[1762275083184,4.07865937,102390.0,102380.0,0.03672267]
[1762275083359,4.14679684,102390.0,102380.0,0.03672267]
[1762275083544,4.09865935,102390.0,102380.0,0.03672267]
[1762275083745,3.5311274,102390.0,102380.0,0.03672267]
[1762275084035,4.16679842,102390.0,102380.0,0.03672267]
[1762275084211,4.09865935,102390.0,102380.0,0.03672267]
[1762275084435,4.36624123,102390.0,102380.0,0.03672267]
[1762275084653,3.31038327,102380.0,102370.0,0.02556679]
[1762275084813,2.96042145,102360.0,102350.0,0.00374818]
[1762275085032,3.83035758,102360.0,102350.0,0.00374818]
[1762275085226,2.9735996,102360.0,102350.0,0.00448811]
[1762275085834,3.72175135,102360.0,102350.0,0.00448811]
[1762275086035,3.72275135,102360.0,102350.0,0.01248811]
[1762275086252,0.10488956,102360.0,102350.0,0.01248811]
[1762275086469,0.20061956,102360.0,102350.0,0.01248811]
[1762275086687,0.20061956,102360.0,102350.0,0.05200456]
[1762275086909,0.20061956,102360.0,102350.0,1.17361069]
[1762275086910,0.03950956,102360.0,102350.0,1.17361069]
[1762275087110,0.03950956,102360.0,102350.0,0.35118759]
[1762275087243,0.01889534,102360.0,102350.0,0.05200456]
[1762275087635,0.01889534,102360.0,102350.0,0.24741247]
[1762275087839,0.01889534,102360.0,102350.0,0.25441247]
[1762275088216,0.13536534,102360.0,102350.0,0.05200456]
[1762275088418,0.47536534,102360.0,102350.0,0.05200456]
[1762275088619,0.49471155,102360.0,102350.0,0.04600456]
[1762275088971,0.49471155,102360.0,102350.0,0.04500456]
[1762275088972,4.5122047,102360.0,102350.0,0.04500456]
[1762275089187,0.50096,102340.0,102310.0,0.37807511]
[1762275089566,0.35885534,102340.0,102320.0,0.19546514]
[1762275089719,0.35885534,102340.0,102330.0,0.00049346]
[1762275089918,0.35789534,102340.0,102330.0,0.19593956]
[1762275090080,0.35789534,102340.0,102330.0,0.24505097]
[1762275090280,0.01838128,102340.0,102330.0,0.35583956]
[1762275090585,0.00148594,102340.0,102330.0,0.35583956]
[1762275091124,0.00148594,102340.0,102330.0,0.23545601]
[1762275091327,0.00148594,102340.0,102330.0,0.44553601]
[1762275091531,0.02034157,102360.0,102350.0,0.24469475]
[1762275091709,3.5249,102380.0,102370.0,0.03951645]
[1762275091909,3.06289892,102380.0,102370.0,0.03951645]
[1762275092279,3.30774957,102380.0,102350.0,0.00014548]
[1762275092459,3.0,102360.0,102350.0,0.00014548]
[1762275092656,0.03799892,102360.0,102350.0,0.00014548]
[1762275093077,0.01765558,102360.0,102350.0,0.00014548]
[1762275093282,0.04714,102350.0,102320.0,0.24065916]
[1762275093484,0.13054558,102350.0,102330.0,0.19544577]
[1762275093663,0.4189737,102350.0,102320.0,0.00048594]
[1762275093880,3.0,102340.0,102330.0,0.09202305]
[1762275094082,0.11068521,102340.0,102320.0,0.00048594]
[1762275094242,0.01766521,102340.0,102330.0,0.03951645]
[1762275094449,0.01766521,102340.0,102330.0,0.03976319]
[1762275094898,0.17643521,102340.0,102330.0,0.06333421]
[1762275095302,0.17643521,102340.0,102330.0,0.03976319]
[1762275095615,3.73521042,102340.0,102330.0,0.03976319]
[1762275095823,3.71786221,102340.0,102330.0,0.04076319]
[1762275095975,3.53978523,102340.0,102330.0,0.03976319]
[1762275096170,3.71486221,102340.0,102330.0,0.03976319]
[1762275096394,3.54078874,102340.0,102330.0,0.04576319]
[1762275096595,3.73616054,102340.0,102330.0,0.04576319]
[1762275096799,3.53773354,102340.0,102330.0,0.08144547]
[1762275097003,3.71280701,102340.0,102330.0,0.08144547]
[1762275097201,0.0389614,102340.0,102330.0,0.08744547]
[1762275097402,0.01861001,102340.0,102330.0,0.05126319]
[1762275097834,0.01861001,102340.0,102330.0,0.24670929]
[1762275098076,0.001,102340.0,102330.0,0.05126319]
[1762275098210,0.49977,102340.0,102330.0,0.08744547]
[1762275098394,3.40675,102340.0,102330.0,0.08744547]
[1762275098593,0.36136473,102340.0,102330.0,0.09664453]
[1762275098797,0.02136473,102340.0,102330.0,0.09664453]
[1762275098999,0.001,102340.0,102330.0,0.09664453]
[1762275099244,0.001,102340.0,102330.0,0.09614453]
[1762275099440,0.001,102340.0,102330.0,0.09599453]
[1762275099645,0.355197,102340.0,102330.0,0.05061319]
[1762275099816,0.18013473,102340.0,102330.0,0.08679547]
[1762275100057,0.71556173,102340.0,102330.0,0.08679547]
[1762275100362,0.36136473,102340.0,102330.0,0.08679547]
[1762275100510,0.52013473,102340.0,102330.0,0.08679547]
[1762275101616,0.42711473,102340.0,102330.0,0.08679547]
[1762275101829,0.36136473,102340.0,102330.0,0.08679547]
[1762275101975,0.52013473,102340.0,102330.0,0.08679547]
[1762275102176,0.36136473,102340.0,102330.0,0.09644352]
[1762275102377,0.02136473,102340.0,102330.0,0.09644352]
[1762275102580,0.02136473,102340.0,102330.0,0.08679547]
[1762275103019,0.18013473,102340.0,102330.0,0.08679547]
[1762275103156,0.23113978,102340.0,102330.0,0.08679547]
[1762275103530,0.42656678,102340.0,102330.0,0.08679547]
[1762275103730,3.76656678,102340.0,102330.0,0.05061319]
[1762275104063,3.76656678,102340.0,102330.0,0.05011319]
[1762275104282,3.71556173,102340.0,102330.0,0.00459192]
[1762275104477,3.85874036,102340.0,102330.0,0.00459192]
[1762275104681,4.63269194,102340.0,102330.0,0.00459192]
[1762275104960,4.67793194,102340.0,102330.0,0.00459192]
[1762275105138,4.67693194,102340.0,102330.0,0.00459192]
[1762275105284,0.34,102330.0,102320.0,0.00048594]
[1762275105485,0.4115855,102330.0,102320.0,0.03666822]
[1762275105728,0.02036473,102330.0,102320.0,0.30549248]
[1762275105903,0.0715855,102330.0,102320.0,0.04586728]
[1762275106449,0.0715855,102330.0,102320.0,0.08538373]
[1762275107027,0.0715855,102330.0,102320.0,0.09038373]
[1762275107275,0.0715855,102330.0,102320.0,0.08988373]
[1762275107427,0.08837273,102330.0,102320.0,0.08988373]
[1762275107630,0.02136473,102330.0,102320.0,1.10960809]
[1762275107839,0.07273331,102330.0,102320.0,1.20418415]
[1762275108048,0.07273331,102330.0,102320.0,1.24938415]
[1762275108251,0.08937273,102330.0,102320.0,0.37372593]
[1762275108452,0.02136473,102330.0,102320.0,0.43788593]
[1762275108651,0.03923581,102330.0,102320.0,0.43788593]
[1762275109047,0.08970457,102330.0,102320.0,0.42988593]
[1762275109259,0.12220049,102330.0,102320.0,0.35066027]
[1762275109459,0.12720049,102330.0,102320.0,0.35166027]
[1762275109659,0.28986049,102330.0,102320.0,0.001]
[1762275109885,0.05219249,102330.0,102320.0,0.00054]
[1762275110105,0.28363024,102330.0,102320.0,0.00054]
[1762275110285,0.21685249,102330.0,102310.0,0.36897386]
[1762275110487,0.20368424,102330.0,102320.0,4e-05]
[1762275110813,0.49190034,102330.0,102320.0,4e-05]
[1762275111012,0.19868424,102330.0,102320.0,0.00128678]
[1762275111378,0.49390034,102330.0,102320.0,0.07698551]
[1762275111577,0.49390034,102330.0,102320.0,0.04080323]
[1762275111818,0.19668424,102330.0,102320.0,0.03980323]
[1762275111997,0.49190034,102330.0,102320.0,0.07598551]
[1762275112197,0.49190034,102330.0,102320.0,0.07698551]
[1762275112198,0.49325023,102330.0,102320.0,0.07698551]
[1762275112483,0.11727305,102330.0,102320.0,0.07698551]
[1762275112683,0.11727305,102330.0,102320.0,0.14114551]
[1762275112925,0.11727305,102330.0,102320.0,0.28164977]
[1762275113129,0.1002035,102330.0,102320.0,0.08618457]
[1762275113326,0.1002035,102330.0,102320.0,0.08622457]
[1762275113767,0.1002035,102330.0,102320.0,0.28168977]
[1762275113972,0.1002035,102330.0,102320.0,0.28172977]
[1762275114123,0.1002035,102330.0,102320.0,0.43300613]
[1762275114331,0.03115733,102330.0,102320.0,0.43300613]
[1762275114564,0.03115733,102330.0,102320.0,0.43304613]
[1762275114703,0.10023475,102330.0,102320.0,0.49720613]
[1762275114910,0.10023475,102330.0,102320.0,0.49724613]
[1762275115173,0.03119077,102330.0,102320.0,1.25434529]
[1762275115375,0.1551597,102350.0,102330.0,0.27114483]
[1762275115584,0.0780348,102350.0,102340.0,0.50472878]
[1762275115860,0.06904398,102360.0,102350.0,0.27110664]
[1762275116063,0.95081314,102380.0,102370.0,0.03618228]
[1762275116272,3.39805414,102380.0,102370.0,0.07569873]
[1762275116426,0.00898951,102380.0,102370.0,0.18054873]
[1762275116661,0.00898951,102380.0,102370.0,0.07569873]
[1762275117061,0.10875951,102380.0,102370.0,0.07569873]
[1762275117261,0.10875951,102380.0,102370.0,0.07574738]
[1762275117687,0.30411016,102380.0,102370.0,0.07578738]
[1762275117885,0.10875951,102380.0,102370.0,0.07578738]
[1762275118044,0.30611016,102380.0,102370.0,0.0406051]
[1762275118247,4.0324833,102380.0,102370.0,0.0406451]
[1762275118603,4.2815833,102380.0,102370.0,0.0406451]
[1762275118830,4.2815833,102380.0,102370.0,0.0406851]
[1762275118831,4.6215833,102380.0,102370.0,0.0406851]
[1762275119057,0.19543247,102340.0,102320.0,0.01000283]
[1762275119272,0.1955793,102340.0,102320.0,0.00964584]
[1762275120030,0.1955793,102340.0,102330.0,0.03618228]
[1762275120214,0.1954461,102330.0,102320.0,0.00044678]
[1762275120440,4.29254526,102330.0,102320.0,0.00044678]
[1762275120610,0.1954652,102320.0,102310.0,0.03626689]
[1762275120994,0.00898133,102320.0,102310.0,0.07578334]
[1762275121612,0.00898133,102320.0,102310.0,0.11196562]
[1762275121825,0.20444653,102320.0,102310.0,0.11196562]
[1762275122040,0.20444653,102320.0,102310.0,0.07678334]
[1762275122041,3.99064598,102320.0,102310.0,0.07678334]
[1762275122252,4.30354569,102320.0,102310.0,0.07678334]
[1762275122472,4.37256415,102320.0,102310.0,0.07878334]
[1762275122676,4.37256415,102320.0,102300.0,1e-08]
[1762275122677,0.19548431,102310.0,102300.0,1e-08]
[1762275122908,3.35979583,102310.0,102300.0,1e-08]
[1762275123084,3.78591155,102310.0,102300.0,1e-08]
[1762275123313,4.5530107,102310.0,102300.0,1e-08]
[1762275123521,0.53550342,102300.0,102290.0,1e-08]
[1762275123745,3.19554165,102280.0,102270.0,1e-08]
[1762275123955,4.4437413,102280.0,102270.0,1e-08]
[1762275124407,4.16938763,102280.0,102270.0,1e-08]
[1762275124624,3.78402763,102280.0,102270.0,0.03951646]
[1762275124824,3.78417319,102280.0,102270.0,0.03951646]
[1762275125027,3.75724472,102280.0,102270.0,0.27125951]
[1762275125230,0.00014556,102280.0,102270.0,0.07569874]
[1762275125567,0.75724472,102280.0,102270.0,0.07569874]
[1762275125797,3.75724472,102280.0,102270.0,0.03951646]
[1762275126003,3.77348714,102280.0,102270.0,0.07573874]
[1762275126203,0.76224472,102280.0,102270.0,0.07573874]
[1762275126404,0.00514556,102280.0,102270.0,0.07577874]
[1762275126618,0.96778637,102280.0,102270.0,0.07677874]
[1762275126892,0.96778637,102280.0,102270.0,0.07805329]
[1762275127087,0.00514556,102280.0,102270.0,0.07705329]
[1762275127286,0.00014556,102280.0,102270.0,0.07709329]
[1762275127605,0.00614556,102280.0,102270.0,0.07913329]
[1762275127812,0.00714556,102280.0,102270.0,0.36671711]
[1762275128024,0.00114556,102280.0,102270.0,0.45929317]
[1762275128439,0.00014556,102280.0,102270.0,0.66929316]
[1762275128656,0.00014556,102280.0,102270.0,0.45929317]
[1762275128870,0.00014556,102280.0,102270.0,0.80929316]
[1762275129067,0.00914556,102280.0,102270.0,1.01029316]
[1762275129466,0.00914556,102280.0,102270.0,1.00929316]
[1762275129467,0.00114556,102280.0,102270.0,1.00929316]
[1762275129640,0.00114556,102280.0,102270.0,0.04095101]
[1762275129958,0.01114556,102280.0,102270.0,0.27469406]
[1762275130397,0.01014556,102280.0,102270.0,0.32033406]
[1762275130597,0.01614556,102280.0,102270.0,0.31833406]
[1762275130857,0.00614556,102280.0,102270.0,0.31833406]
[1762275131107,0.00914556,102280.0,102270.0,0.41491012]
[1762275131303,0.00014556,102280.0,102270.0,0.41291012]
[1762275131761,0.00414556,102280.0,102270.0,0.41291012]
[1762275132145,0.00414556,102280.0,102270.0,0.13552707]
[1762275132146,0.19568721,102280.0,102270.0,0.13552707]
[1762275132298,0.19568721,102280.0,102270.0,0.04095101]
[1762275132299,3.00014556,102280.0,102270.0,0.04095101]
[1762275132850,0.00014556,102280.0,102270.0,0.27269406]
[1762275132989,0.00014556,102280.0,102270.0,0.27469406]
[1762275132990,0.00714556,102280.0,102270.0,0.27469406]
[1762275133195,0.00014556,102280.0,102270.0,0.28240952]
[1762275133398,0.00014556,102280.0,102270.0,0.39333454]
[1762275133598,0.01014556,102280.0,102270.0,0.39433454]
[1762275133945,0.01014556,102280.0,102270.0,0.37543257]
[1762275134175,0.00014556,102280.0,102270.0,0.37443257]
[1762275134318,0.00914556,102280.0,102270.0,0.42500557]
[1762275134521,0.00914556,102280.0,102270.0,0.37643257]
[1762275134914,0.00714556,102280.0,102270.0,0.37643257]
[1762275135390,0.00714556,102280.0,102270.0,0.28340952]
[1762275135567,0.00714556,102280.0,102270.0,0.37343257]
[1762275135786,0.00714556,102280.0,102270.0,0.46800863]
[1762275135787,0.00014556,102280.0,102270.0,0.46800863]
[1762275135991,0.00314556,102280.0,102270.0,0.28240952]
[1762275136409,0.00314556,102280.0,102270.0,0.04966647]
[1762275136410,0.00014556,102280.0,102270.0,0.04966647]
[1762275136538,0.00014556,102280.0,102270.0,0.28806724]
[1762275136754,0.00014556,102280.0,102270.0,0.32424952]
[1762275137197,0.01314556,102280.0,102270.0,0.32624952]
[1762275137372,0.00414556,102280.0,102270.0,0.72084862]
[1762275137717,0.00014556,102280.0,102270.0,1.47794778]
[1762275137869,0.00014556,102280.0,102270.0,1.48794777]
[1762275138293,0.00114556,102280.0,102270.0,1.48794777]
[1762275138455,0.00114556,102280.0,102270.0,1.47794778]
[1762275138655,0.00114556,102280.0,102270.0,1.48794777]
[1762275138858,0.00914556,102280.0,102270.0,0.52296862]
[1762275139063,0.00914556,102280.0,102270.0,0.33625029]
[1762275139275,0.00914556,102280.0,102270.0,0.38021029]
[1762275139276,0.00114556,102280.0,102270.0,0.38021029]
[1762275139486,0.00114556,102280.0,102270.0,0.41639257]
[1762275139693,0.00014556,102280.0,102270.0,0.41839257]
[1762275139892,0.00914556,102280.0,102270.0,0.41839257]
[1762275140117,0.00414556,102280.0,102270.0,0.51096863]
[1762275140408,0.01114556,102280.0,102270.0,0.51196863]
[1762275140607,0.00714556,102280.0,102270.0,0.51196863]
[1762275140807,0.00614556,102280.0,102270.0,0.51096863]
[1762275141396,0.00014556,102280.0,102270.0,0.51096863]
[1762275141833,0.00414556,102280.0,102270.0,0.51096863]
[1762275141987,0.00414556,102280.0,102270.0,0.51100863]
[1762275142508,0.01514556,102280.0,102270.0,0.46704863]
[1762275142726,0.01514556,102280.0,102270.0,0.31740786]
[1762275142909,0.01114556,102280.0,102270.0,0.51296863]
[1762275143109,0.01114556,102280.0,102270.0,0.51300863]
[1762275143313,0.01714556,102280.0,102270.0,1.27010779]
[1762275143768,0.05840972,102340.0,102320.0,0.03618228]
[1762275143915,3.80132885,102340.0,102330.0,0.07569873]
[1762275144121,4.01254801,102340.0,102330.0,0.07569873]
[1762275144338,4.35254801,102340.0,102330.0,0.07359873]
[1762275144757,5.09179463,102340.0,102330.0,0.07359873]
[1762275145070,4.33469547,102340.0,102330.0,0.07359873]
[1762275145418,4.32576781,102340.0,102330.0,0.07359873]
[1762275145830,3.99376781,102340.0,102330.0,0.07459873]
[1762275146071,4.75086697,102340.0,102330.0,0.07459873]
[1762275146269,5.11765776,102340.0,102330.0,0.07463873]
[1762275146473,4.72283104,102340.0,102330.0,0.07463873]
[1762275146679,0.1954461,102330.0,102270.0,0.00036]
[1762275146932,4.31491325,102280.0,102270.0,0.00036]
[1762275147084,4.1193716,102280.0,102270.0,0.00036]
[1762275147289,3.0,102280.0,102270.0,0.00036]
[1762275147493,2.78256891,102270.0,102260.0,0.49749]
[1762275147691,0.5596858,102270.0,102260.0,0.49749]
[1762275148235,0.5596858,102270.0,102260.0,0.69355592]
[1762275148435,0.5596858,102280.0,102270.0,0.19556035]
[1762275148662,3.0,102290.0,102280.0,0.03618228]
[1762275148862,0.5596858,102290.0,102280.0,0.27124038]
[1762275149077,3.54584,102320.0,102310.0,0.07569873]
[1762275149214,3.04746269,102320.0,102310.0,0.07594555]
[1762275149407,3.24292789,102320.0,102310.0,0.07594555]
[1762275149619,3.04746269,102320.0,102310.0,0.07594555]
[1762275149828,3.24292789,102320.0,102310.0,0.07594555]
[1762275150035,3.21607297,102320.0,102310.0,0.07594555]
[1762275150232,4.36845043,102320.0,102310.0,0.07694555]
[1762275150474,3.61329943,102320.0,102310.0,0.07694555]
[1762275150675,3.61329943,102320.0,102310.0,0.27242986]
[1762275150853,3.58643972,102320.0,102310.0,0.27242986]
[1762275151217,3.58643972,102320.0,102310.0,0.07894555]
[1762275151394,3.58643972,102320.0,102310.0,0.27442986]
[1762275151592,3.58643972,102320.0,102310.0,0.07698555]
[1762275151934,3.02675392,102320.0,102310.0,0.07702555]
[1762275152293,3.78190492,102320.0,102310.0,0.07706555]
[1762275152453,0.02075392,102320.0,102310.0,0.27929641]
[1762275152660,0.00014615,102320.0,102310.0,0.27929641]
[1762275152855,0.00014615,102320.0,102310.0,0.07610555]
[1762275153054,0.56483195,102320.0,102310.0,0.08010555]
[1762275153271,0.55983195,102320.0,102310.0,0.07910555]
[1762275153477,0.55983195,102320.0,102310.0,0.27158986]
[1762275153661,0.00114615,102320.0,102310.0,0.36661291]
[1762275154017,0.00014615,102320.0,102310.0,0.44630627]
[1762275154221,0.00114615,102320.0,102310.0,0.44430627]
[1762275155018,1e-08,102320.0,102310.0,1.01399206]
[1762275155222,1e-08,102320.0,102310.0,1.56399205]
[1762275155562,1e-08,102320.0,102310.0,1.76399205]
[1762275155736,0.00090399,102340.0,102330.0,0.82114482]
[1762275155967,0.00090399,102340.0,102330.0,1.54002865]
[1762275156639,0.00090399,102340.0,102330.0,1.6320517]
[1762275157053,0.00790399,102340.0,102330.0,1.6330517]
[1762275157249,0.02062706,102380.0,102360.0,0.00976944]
[1762275157453,0.04725924,102390.0,102380.0,0.27104938]
[1762275157454,0.00955801,102390.0,102380.0,0.27104938]
[1762275157807,0.01121469,102440.0,102430.0,0.07569873]
[1762275157981,0.01136079,102440.0,102430.0,0.07569873]
[1762275158182,0.0005461,102440.0,102430.0,0.07569873]
[1762275158405,0.0005461,102440.0,102430.0,0.07623754]
[1762275158610,0.0005461,102440.0,102430.0,0.27149283]
[1762275158821,0.0005461,102440.0,102430.0,0.10744001]
[1762275158994,0.0005461,102440.0,102430.0,0.3026953]
[1762275159195,0.5602319,102440.0,102430.0,0.3026953]
[1762275159398,0.0005461,102440.0,102430.0,0.3026953]
[1762275159801,0.0005461,102440.0,102430.0,1.2023811]
[1762275160218,0.0035461,102440.0,102430.0,0.6436953]
[1762275160387,0.0035461,102440.0,102430.0,1.41238109]
[1762275160388,0.0005461,102440.0,102430.0,1.41238109]
[1762275160592,0.0005461,102440.0,102430.0,0.85269529]
[1762275160769,0.0005461,102440.0,102430.0,1.41238109]
[1762275160982,0.0055461,102440.0,102430.0,1.41338109]
[1762275161186,0.0055461,102440.0,102430.0,0.85369529]
[1762275161434,0.0055461,102440.0,102430.0,1.41338109]
[1762275161636,0.0055461,102440.0,102430.0,0.85369529]
[1762275161951,0.0055461,102440.0,102430.0,0.3036953]
[1762275162188,0.0005461,102440.0,102430.0,0.10744001]
[1762275162375,0.0005461,102440.0,102430.0,0.07125773]
[1762275162576,0.5612319,102440.0,102430.0,0.07625773]
[1762275162783,0.0015461,102440.0,102430.0,0.27151302]
[1762275162977,0.0015461,102440.0,102430.0,0.26651302]
[1762275162978,0.0005461,102440.0,102430.0,0.26651302]
[1762275163377,0.01001067,102440.0,102430.0,0.26751302]
[1762275163591,0.01001067,102440.0,102430.0,0.10844001]
[1762275163789,0.00601067,102440.0,102430.0,0.3026953]
[1762275164114,0.00801067,102440.0,102430.0,0.07669873]
[1762275164254,0.7629327,102440.0,102430.0,0.04351645]
[1762275164453,3.7629327,102440.0,102430.0,0.04351645]
[1762275165159,4.3176185,102440.0,102430.0,0.04251645]
[1762275165511,4.12238227,102440.0,102430.0,0.03951645]
[1762275165752,0.56469647,102440.0,102430.0,0.23477174]
[1762275165924,0.56669647,102440.0,102430.0,0.07569873]
[1762275166123,0.00701067,102440.0,102430.0,0.07569873]
[1762275166330,0.56369647,102440.0,102430.0,0.2007092]
[1762275166532,0.56269647,102440.0,102430.0,0.36297707]
[1762275166731,0.00301067,102440.0,102430.0,0.36297707]
[1762275167136,0.00301067,102440.0,102430.0,0.36301707]
[1762275167358,0.00301067,102440.0,102430.0,0.42073632]
[1762275167486,0.00501067,102440.0,102430.0,0.42073632]
[1762275167684,0.00501067,102440.0,102430.0,0.42077632]
[1762275167886,0.00501067,102440.0,102430.0,0.76077632]
[1762275168125,0.00501067,102440.0,102430.0,0.80677632]
[1762275168360,0.00501067,102440.0,102430.0,1.57650211]
[1762275168694,0.00301067,102440.0,102430.0,1.57650211]
[1762275168897,0.00401067,102440.0,102430.0,1.02181631]
[1762275169091,0.00301067,102440.0,102430.0,1.57650211]
[1762275169603,0.025,102480.0,102470.0,0.2708778]
[1762275169773,0.0254869,102480.0,102470.0,0.28977977]
[1762275169978,0.0254869,102480.0,102470.0,0.33827588]
[1762275170382,0.0254869,102480.0,102470.0,0.14309681]
[1762275170555,0.0254869,102480.0,102470.0,0.33827588]
[1762275171325,0.0254869,102480.0,102470.0,0.14309681]
[1762275171593,0.5851727,102480.0,102470.0,0.0946007]
[1762275171740,0.22064693,102480.0,102470.0,0.07569873]
[1762275171944,4.12033273,102480.0,102470.0,0.03951645]
[1762275172143,4.68001853,102480.0,102470.0,0.04451645]
[1762275172370,4.68101853,102480.0,102470.0,0.04451645]
[1762275172652,4.68001853,102480.0,102470.0,0.03951645]
[1762275172822,4.68001853,102480.0,102470.0,0.04451645]
[1762275173024,3.9261727,102480.0,102470.0,0.05351645]
[1762275173258,3.5861727,102480.0,102470.0,0.05351645]
[1762275173441,3.5851727,102480.0,102470.0,0.07569873]
[1762275173646,3.5851727,102480.0,102470.0,0.07573873]
[1762275173816,3.5851727,102480.0,102470.0,0.2709178]
[1762275174018,3.0254869,102480.0,102470.0,0.07577873]
[1762275174363,3.5851727,102480.0,102470.0,0.07877873]
[1762275174567,3.5851727,102480.0,102470.0,0.0866966]
[1762275174769,3.5861727,102480.0,102470.0,0.08481873]
[1762275174966,0.0254869,102480.0,102470.0,0.2739978]
[1762275175304,0.02747185,102480.0,102470.0,0.2789978]
[1762275175508,0.02747185,102480.0,102470.0,0.29789977]
[1762275175730,0.02647185,102480.0,102470.0,0.43581245]
[1762275175946,0.02647185,102480.0,102470.0,0.44681245]
[1762275176149,0.02747185,102480.0,102470.0,0.44681245]
[1762275176743,0.58615765,102480.0,102470.0,0.0997207]
[1762275176949,0.02647185,102480.0,102470.0,0.38692282]
[1762275177165,0.58615765,102480.0,102470.0,0.38692282]
[1762275177381,0.02647185,102480.0,102470.0,0.38692282]
[1762275177710,0.02647185,102480.0,102470.0,0.44971475]
[1762275177905,0.02647185,102480.0,102470.0,0.3576917]
[1762275178054,0.02747185,102480.0,102470.0,0.3656917]
[1762275178901,0.02747185,102480.0,102470.0,0.45771475]
[1762275179303,0.02747185,102480.0,102470.0,0.79771475]
[1762275179927,0.02647185,102480.0,102470.0,0.78971475]
[1762275180229,0.02647185,102480.0,102470.0,0.78471475]
[1762275180398,0.03047185,102480.0,102470.0,0.78471475]
[1762275181468,0.59015765,102480.0,102470.0,0.25371749]
[1762275181720,0.03047185,102480.0,102470.0,0.25371749]
[1762275181958,0.03047185,102480.0,102470.0,0.05853842]
[1762275182210,0.03047185,102480.0,102470.0,0.34574054]
[1762275182427,0.03047185,102480.0,102470.0,0.40441424]
[1762275183065,4.68500348,102480.0,102470.0,0.03963645]
[1762275183266,4.73064348,102480.0,102470.0,0.03963645]
[1762275183709,4.73064348,102480.0,102470.0,0.07581873]
[1762275184050,4.73064348,102480.0,102470.0,0.03963645]
[1762275184469,4.73164348,102480.0,102470.0,0.08381873]
[1762275184675,4.5050116,102480.0,102470.0,0.07581873]
[1762275184937,4.70017163,102480.0,102470.0,0.03963645]
[1762275185158,4.70117163,102480.0,102470.0,0.04963645]
[1762275185580,4.70117163,102480.0,102470.0,0.04563645]
[1762275185806,4.72417163,102480.0,102470.0,0.07581873]
[1762275186001,3.58080003,102480.0,102470.0,0.07781873]
[1762275186242,4.70017163,102480.0,102470.0,0.04163645]
[1762275186601,4.70017163,102480.0,102470.0,0.03963645]
[1762275186804,4.74417161,102480.0,102470.0,1e-08]
[1762275187004,3.53523623,102440.0,102430.0,0.00016]
[1762275187330,4.70024783,102440.0,102430.0,0.00016]
[1762275187549,4.70024783,102440.0,102430.0,0.00180171]